[Event "Grand Prix Romania 1st Stage 2024"]
[Site "Bucuresti"]
[Date "2024.03.24"]
[Round "9.3"]
[White "Motylev, Alexander"]
[Black "Mikhalevski, Victor"]
[Result "1/2-1/2"]
[ECO "C50"]
[WhiteElo "2611"]
[BlackElo "2514"]
[Annotator "TA"]
[PlyCount "166"]
[EventDate "2024.03.20"]
[EventType "swiss"]
[EventCountry "ROU"]
[SourceTitle "playchess.com"]
[Source "ChessBase"]
[SourceQuality "1"]
[TimeControl "900+5"]

{[%evp 10,166,22,19,22,5,27,23,24,23,24,23,25,24,24,18,19,14,11,8,19,14,35,18,60,58,103,95,157,160,147,40,59,20,27,0,35,0,0,0,0,0,0,-59,-45,-788,-299,-293,-178,-298,-306,-297,-203,-231,-279,-413,-331,-560,-538,-577,-623,-653,-635,-636,-609,-656,-580,-669,-550,-646,-556,-663,-619,-5481,-5111,-29968,-29966,-29944,-11347,-29970,-29972,-29982,-29974,-29983,-29975,-29975,-29976,-29985,-29986,-29986,-29987,-29988,-29989,-29990,-29980,-29979,-29977,-29977,-29975,-29976,-29967,-6111,0,-29972,0,-29975,-991,-29975,-29975,-29969,0,-29963,0,-29962,0,-29956,0,-7204,-100,-100,0,0,0,0,0,0,0,0,0,0,0,0,0,0,0,0,0,-7,0,-3,0,-43,0,-44,0,0,0,0,0,0,0,0,0,0,0,0,0,0,0]} 1. e4 {[%emt 0:00:03]} e5 {[%emt 0:00:01]} 2. Nf3 {[%emt 0:00:02]} Nc6 {[%emt 0:00:02]} 3. Bc4 {[%emt 0:00:02]} Bc5 {[%emt 0:00:02]} 4. d3 {[%emt 0:00:07]} Nf6 {[%emt 0:00:02]} 5. Nc3 {[%emt 0:00:07]} d6 {[%emt 0:00:16]} 6. Na4 {[%emt 0:00:04]} Bb6 {[%emt 0:00:10]} 7. O-O {[%emt 0:00:22]} Be6 {[%emt 0:00:12]} (7... Na5 $5) 8. Bxe6 {[%emt 0:00:14]} fxe6 {[%emt 0:00:02] Weiß hat minimalen Vorteil.} 9. c3 {[%emt 0:00:40]} O-O {[%emt 0:00:05]} 10. b4 {[%emt 0:00:06]} Qe8 {[%emt 0:00:41]} 11. Bd2 {[%emt 0:00:48]} Nh5 {[%emt 0:01:23]} 12. g3 {[%emt 0:00:39]} Nf6 {[%emt 0:01:10]} 13. Nxb6 {[%emt 0:00:23]} axb6 {[%emt 0:00:01]} 14. a4 {[%emt 0:00:03]} Qd7 {[%emt 0:01:24]} 15. Kg2 {[%emt 0:00:10]} Ra7 {[%emt 0:00:12]} 16. Qb3 {[%emt 0:01:30]} d5 {[%emt 0:01:09]} 17. Rfe1 {[%emt 0:00:39]} dxe4 {[%emt 0:00:39]} 18. dxe4 {[%emt 0:00:03]} Ng4 {[%emt 0:00:02]} (18... Raa8 $142) 19. h3 $16 {[%emt 0:02:09]} Nxf2 {[%emt 0:04:47][%cal Oa7a8]} 20. Re3 {[%emt 0:02:59]} (20. Re2 $1 $16 {[%cal Re2f2]} Nxh3 21. Rf1) 20... Raa8 $1 $14 {[%emt 0:00:10][%cal Of2e4]} 21. Qc2 {[%emt 0:02:34]} (21. Qc4 $5) 21... Rad8 $1 {[%emt 0:00:08]} 22. Re2 {[%emt 0:00:08]} (22. b5 $5 Na5 23. c4 $16) 22... Nd3 {[%emt 0:01:52][%cal Od3b4] Hervorragende Reitkunst.} (22... Nxh3 23. Rf1 $16) (22... Rxf3 $5 23. Kxf3 Rf8+ (23... Nxh3 24. Kg4 $16) 24. Kg2 Qf7 $11) 23. Bg5 {[%emt 0:00:20]} (23. b5 $5 Qf7 24. Re3 Nf4+ 25. gxf4 exf4 26. Re2 Qg6+ 27. Kh1 $11) 23... Ndxb4 $1 {[%emt 0:00:19]} 24. cxb4 {[%emt 0:00:34]} Rxf3 $1 {[%emt 0:00:02]} 25. Bxd8 {[%emt 0:00:04]} Qxd8 {[%emt 0:00:46]} 26. Rd1 {[%emt 0:00:55]} ({Günstiger ist} 26. Qa2 $11 Nd4 27. Rf2) 26... Nd4 $15 {[%emt 0:00:06] ...Qg5 wäre nun fies.} 27. Rf2 $2 {[%emt 0:00:43][%mdl 8192] [#]} (27. Qd2 $15) 27... Rxg3+ $3 {[%emt 0:00:07][%mdl 512]} 28. Kxg3 $19 {[%emt 0:00:32]} Qg5+ {[%emt 0:00:00]} 29. Kh2 {[%emt 0:00:01]} Nxc2 {[%emt 0:00:01]} 30. Rxc2 {[%emt 0:00:04][%mdl 4096] Endspiel. KQ-KRR} Qf4+ {[%emt 0:00:03]} 31. Kg1 {[%emt 0:00:09] Droht stark Rd8+.} Qe3+ {[%emt 0:00:17]} (31... Qxe4 32. Rd8+ Kf7 33. Rd7+ Kf6 34. Rf2+ Kg6 35. Rg2+ Kh5 36. Rdxg7) 32. Rf2 {[%emt 0:00:08]} (32. Kh2 $142) 32... h6 {[%emt 0:00:03][%cal Oc7c5]} (32... Qxh3 33. Rd8#) 33. Kg2 $2 {[%emt 0:00:21]} (33. Rd7) 33... Qxe4+ {[%emt 0:00:02]} 34. Kh2 {[%emt 0:00:03]} Qxb4 {[%emt 0:00:19]} 35. Rd8+ {[%emt 0:00:01]} Kh7 {[%emt 0:00:02][%cal Oe5e4]} 36. Rd7 {[%emt 0:00:01]} e4 {[%emt 0:00:02]} 37. Rff7 {[%emt 0:00:15]} Qc3 {[%emt 0:00:02]} (37... Qxa4 $2 38. Rxg7+ Kh8 39. Rh7+ Kg8 40. Rdg7+ Kf8 41. Rxc7 $18) 38. Rxc7 {[%emt 0:00:02]} Qe5+ {[%emt 0:00:09]} 39. Kg2 {[%emt 0:00:01]} h5 {[%emt 0:00:21]} 40. Rxb7 {[%emt 0:00:06]} Kh6 {[%emt 0:00:01]} 41. Rxb6 {[%emt 0:00:08]} e3 {[%emt 0:00:20] ( -> ...Qe4+)} 42. Rf1 {[%emt 0:00:09]} e2 {[%emt 0:00:04]} 43. Re1 {[%emt 0:00:01]} Qe4+ {[%emt 0:00:01]} 44. Kh2 {[%emt 0:00:03]} Qe3 {[%emt 0:00:10]} (44... Qxa4 45. Rxe6+ Kh7 46. R1xe2 $17) 45. Rbb1 {[%emt 0:00:05]} Qf2+ {[%emt 0:00:02]} 46. Kh1 {[%emt 0:00:01]} Kg5 {[%emt 0:00:29]} 47. a5 {[%emt 0:00:07]} Kh4 {[%emt 0:00:13]} 48. Rb4+ {[%emt 0:00:10]} Kxh3 {[%emt 0:00:02][%cal Rf2e1]} 49. Rb3+ {[%emt 0:00:00]} Kg4 {[%emt 0:00:09]} 50. Rb4+ {[%emt 0:00:03]} Kf5 {[%emt 0:00:09]} 51. Rbb1 {[%emt 0:00:02]} h4 {[%emt 0:00:14]} 52. a6 {[%emt 0:00:05]} Qf3+ {[%emt 0:00:07]} 53. Kh2 {[%emt 0:00:01]} Qf4+ {[%emt 0:00:04]} 54. Kh1 {[%emt 0:00:06]} Qe4+ {[%emt 0:00:08]} 55. Kh2 {[%emt 0:00:00]} Qf4+ {[%emt 0:00:08]} (55... g5 $19 56. a7 g4) 56. Kh1 $1 {[%emt 0:00:01]} Qf3+ {[%emt 0:00:01]} 57. Kh2 $1 {[%emt 0:00:01]} e5 {[%emt 0:00:03]} (57... h3 $142 58. Rg1 g5 59. Ra1 g4 (59... Qf2+ $2 60. Kh1 $19) 60. a7 Qf2+ 61. Kh1 h2 (61... g3 $2 62. Rxg3 e1=Q+ 63. Rxe1 $19) 62. Rg2 e1=R+ 63. Rxe1 Qxe1+ 64. Kxh2 Qe5+ 65. Rg3 Qh8+ 66. Kg2 Qa8+ 67. Kf2 Qxa7+ 68. Ke2 Qa2+ 69. Kd1 Kf4 (69... Qf2 70. Rd3 g3 71. Rd2 Qf1+ 72. Kc2 g2 73. Rxg2 Qxg2+ 74. Kc3 Ke4 75. Kc4 Qf2 76. Kb4 Qd4+ 77. Kb5 Kd5 78. Ka6 Qb4 79. Ka7 Kc6 80. Ka8 Qb7#) 70. Rd3 g3 71. Rd2 Qb1+ 72. Ke2 Qe4+ 73. Kf1 Qf3+ 74. Ke1 g2 75. Rd4+ Ke5 (75... Ke3 76. Rd3+ Kf4 77. Rxf3+ Kxf3 78. Kd2 g1=Q 79. Kc3 Qc5+ 80. Kb3 Ke2 81. Ka4 Kd2 82. Kb3 Qb5+ 83. Ka3 Kc3 84. Ka2 Qb2#) 76. Rg4 Qxg4 77. Kd2 g1=Q (77... g1=R 78. Kc3 Qh3+ 79. Kb4 Rb1+ 80. Kc4 Qb3+ 81. Kc5 Qd5#) 78. Kc2 Qc4+ 79. Kd2 Qgc1#) 58. Ra1 {[%emt 0:00:08]} Qf2+ {[%emt 0:00:08]} 59. Kh1 {[%emt 0:00:01]} Qf3+ {[%emt 0:00:02]} 60. Kh2 {[%emt 0:00:01]} Qf2+ {[%emt 0:00:12]} 61. Kh1 {[%emt 0:00:00]} Qf3+ {[%emt 0:00:02]} 62. Kh2 {[%emt 0:00:01]} Qf2+ {[%emt 0:00:02]} (62... h3 $142 63. Rg1 Qf2+ 64. Kh1 Qa7 65. Kh2 g5 66. Kxh3 Qe3+ 67. Kh2 g4 68. Rgf1+ exf1=Q (68... exf1=B {wird mattgesetzt.} 69. Rxf1+ Ke4 70. a7 Qxa7 71. Kg3 Qe3+ 72. Kg2 g3 73. Kh3 Qe2 74. Rf8 Qh2+ 75. Kg4 g2 76. Kg5 g1=Q+ 77. Kf6 Qh6+ 78. Ke7 Qc5+ 79. Kd8 Qhxf8+ 80. Kd7 Qfe7#) 69. Rxf1+ Ke4 70. a7 Qxa7 71. Kh1 g3 72. Kg2 Qe3 73. Kh3 Qe2 (73... g2+ {führt zum Matt.} 74. Kxg2 Qe2+ 75. Rf2 Ke3 76. Rxe2+ Kxe2 77. Kh3 e4 78. Kg4 e3 79. Kf4 Kd3 80. Kg3 e2 81. Kf2 Kd2 82. Kg3 e1=Q+ 83. Kf4 Qe6 84. Kf3 Qf5+ 85. Kg2 Ke3 86. Kg3 Qg5+ 87. Kh2 Kf3 88. Kh3 Qh6#) 74. Rf8 Qh2+ 75. Kg4 g2 76. Kg5 g1=Q+ (76... g1=R+ 77. Kf6 Qf2+ 78. Ke7 Qa7+ 79. Ke8 Rg7 80. Rf4+ exf4 81. Kf8 Qf7#) 77. Kf6 Qh6+ 78. Kf7 Qgg7+ (78... Qgg6+ $2 79. Ke7 Qd6+ 80. Kf7 Qhxf8#) 79. Ke8 Qxf8+ 80. Kd7 Qhd6#) 63. Kh1 {[%emt 0:00:00] [#]} e4 $2 {[%emt 0:00:03]} (63... h3 $1 $19 {[%csl Gh3][%cal Rf2g2] bietet bessere Gewinnchancen.} 64. Rg1 Qa7) 64. a7 $17 {[%emt 0:00:02] [#]} Qf3+ {[%emt 0:00:03]} ({Besser ist} 64... h3 $1 $17 {[%csl Gh3][%cal Rf2g2]} 65. Rg1 e1=Q 66. Raxe1 Qxa7 67. Ref1+ Ke6) 65. Kh2 $11 {[%emt 0:00:01]} Qg3+ {[%emt 0:00:01]} 66. Kh1 {[%emt 0:00:01]} Qf3+ {[%emt 0:00:10]} 67. Kh2 {[%emt 0:00:01]} h3 {[%emt 0:00:10]} 68. Rg1 {[%emt 0:00:17] Gegen Qg2+ gerichtet. Sehr scharf!} e1=Q {[%emt 0:00:01]} 69. Raxe1 {[%emt 0:00:01][%cal Og1f1] Weiss droht Rgf1! und Matt.} Qf2+ {[%emt 0:00:01]} 70. Kxh3 {[%emt 0:00:09]} Qxa7 {[%emt 0:00:01]} 71. Ref1+ {[%emt 0:00:11]} Ke5 {[%emt 0:00:02]} 72. Rg5+ {[%emt 0:00:08]} Kd4 {[%emt 0:00:02]} 73. Rfg1 {[%emt 0:00:25]} Qd7+ {[%emt 0:00:12]} 74. R1g4 {[%emt 0:00:03]} Kd3 {[%emt 0:00:08]} 75. Rxg7 {[%emt 0:00:03]} Qf5 {[%emt 0:00:01] ...e3 ist eine echte Drohung.} (75... Qe6 $5 76. R7g6 $8 Qd5 $15) 76. R7g5 {[%emt 0:00:20] Aktives Gegenspiel!} Qh7+ {[%emt 0:00:08]} 77. Kg2 {[%emt 0:00:10] Die Stellung ist ausgeglichen.} e3 {[%emt 0:00:03] Und ...Qb7+ würde nun gewinnen.} 78. Rd5+ {[%emt 0:00:10]} Ke2 {[%emt 0:00:13]} 79. Re5 {[%emt 0:00:00]} Qb7+ {[%emt 0:00:08]} 80. Kh2 {[%emt 0:00:09]} Kd2 {[%emt 0:00:05]} 81. Rd4+ {[%emt 0:00:03]} Kc3 {[%emt 0:00:02]} 82. Rde4 {[%emt 0:00:01]} Qh7+ {[%emt 0:00:04]} 83. Kg2 {[%emt 0:00:02]} Qg7+ {[%emt 0:00:20] Weiß hat die Chance genutzt.   Gewichteter Fehlerwert: Weiß=0.56/Schwarz=0.36.  Verlustzug:     	Weiß=1     	---        Fehler:       	Weiß=4     	Schwarz=2     Ungenau:       	Weiß=8     	Schwarz=6     OK:         	Weiß=15    	Schwarz=13    Bester:       	Weiß=9     	Schwarz=2     Stark:        	Weiß=1     	Schwarz=4} 1/2-1/2

[Event "Grand Prix Romania 1st Stage 2024"]
[Site "Bucuresti"]
[Date "2024.03.24"]
[Round "9.4"]
[White "Costachi, Mihnea"]
[Black "Ponomariov, Ruslan"]
[Result "0-1"]
[ECO "D38"]
[WhiteElo "2470"]
[BlackElo "2646"]
[Annotator "TA"]
[PlyCount "80"]
[EventDate "2024.03.20"]
[EventType "swiss"]
[EventCountry "ROU"]
[SourceTitle "playchess.com"]
[Source "ChessBase"]
[SourceQuality "1"]
[TimeControl "900+5"]

{[%evp 25,80,12,29,0,0,-1,18,-13,-13,-12,-10,-14,-12,-17,-7,-66,-36,-69,-58,-51,-50,-60,-50,-57,-64,-45,-11,-100,-105,-89,-81,-84,-81,-112,-93,-243,-150,-245,-248,-278,-264,-510,-486,-526,-531,-517,-487,-29979,-29980,-29979,-29980,-29979,-29974,-29974,-29977,-29977,-29978]} 1. d4 {[%emt 0:00:02]} Nf6 {[%emt 0:00:01]} 2. c4 {[%emt 0:00:02]} e6 {[%emt 0:00:02]} 3. Nf3 {[%emt 0:00:03]} d5 {[%emt 0:00:04]} 4. Nc3 {[%emt 0:00:02]} Nbd7 {[%emt 0:00:05]} 5. cxd5 {[%emt 0:00:07]} exd5 {[%emt 0:00:05]} 6. Bg5 {[%emt 0:00:06]} Bb4 {[%emt 0:00:04]} 7. e3 {[%emt 0:00:25]} c5 {[%emt 0:00:04]} 8. Bd3 {[%emt 0:00:55]} Qa5 {[%emt 0:00:07]} 9. Qc2 {[%emt 0:00:30]} O-O {[%emt 0:00:27]} 10. O-O {[%emt 0:00:26]} c4 {[%emt 0:00:07]} 11. Bf5 {[%emt 0:00:14]} Re8 {[%emt 0:00:11]} 12. Nd2 {[%emt 0:04:46]} g6 {[%emt 0:00:06]} 13. Bh3 {[%emt 0:00:07]} Kg7 {[%emt 0:00:09]} 14. Rfe1 {[%emt 0:01:17]} Nb6 {[%emt 0:03:17]} 15. Bxc8 {[%emt 0:00:07]} Raxc8 {[%emt 0:00:02]} 16. Bxf6+ {[%emt 0:00:37] Die Stellung ist ausgeglichen.} Kxf6 {[%emt 0:00:01]} 17. e4 {[%emt 0:00:02]} dxe4 {[%emt 0:00:51] Aktives Gegenspiel!} 18. Ndxe4+ {[%emt 0:01:00] Hervorragende Reitkunst.} Kg7 {[%emt 0:00:01]} 19. a3 {[%emt 0:00:11]} Bf8 {[%emt 0:00:33]} 20. d5 {[%emt 0:00:50]} Nxd5 $15 {[%emt 0:00:59]} 21. Nxd5 Qxd5 {[%emt 0:00:01]} 22. Qc3+ {[%emt 0:00:04]} Qe5 $1 {[%emt 0:00:01]} 23. Nd6 $1 {[%emt 0:00:06]} Bxd6 {[%emt 0:00:02]} 24. Rxe5 {[%emt 0:00:13]} Bxe5 {[%emt 0:00:01]} 25. Qc2 {[%emt 0:00:57]} Re6 {[%emt 0:01:07]} 26. g3 {[%emt 0:01:38] [#]} (26. Re1 $11) 26... Rb6 $1 $17 {[%emt 0:00:09]} 27. Rb1 {[%emt 0:00:02]} Rb3 {[%emt 0:00:12]} 28. a4 {[%emt 0:00:25]} Bf6 {[%emt 0:00:11]} 29. h4 {[%emt 0:00:22][%cal Oh4h5]} h5 {[%emt 0:00:03]} 30. Kf1 {[%emt 0:00:50] Danach ist Weiß chancenlos.} (30. Qe4 $17) 30... a6 {[%emt 0:00:04]} 31. a5 {[%emt 0:00:17]} (31. Qe4 $17) 31... Rc5 $19 {[%emt 0:00:18]} 32. Qe4 {[%emt 0:00:43] [#]} Rb4 $1 {[%emt 0:01:17][%cal Oc5b5]} (32... Rxa5 33. Qxc4 Rxb2 34. Rxb2 Bxb2 35. Kg2 $19) (32... Bxb2 $2 {ist das falsche Schlagen.} 33. Rxb2 (33. Qc2 Bd4 $11) 33... Rf5 34. Rc2 $18) 33. Qe3 $2 {[%emt 0:00:15]} (33. Rc1) 33... Rxa5 {[%emt 0:00:16][%cal Oc4c3]} 34. Rd1 {[%emt 0:00:01]} Rxb2 {[%emt 0:00:53]} (34... Bxb2 35. Rd8 Re5 36. Qd2 $11) 35. Rd7 {[%emt 0:00:06]} Rf5 {[%emt 0:00:19] Und ...c3 würde nun gewinnen.} 36. Qe8 {[%emt 0:00:09]} (36. Kg1 $19 Rbxf2 (36... Rfxf2 $2 37. Qxf2 Rxf2 38. Kxf2 $19) 37. Qxf2 Rxf2 38. Kxf2) 36... Rbxf2+ {[%emt 0:00:12] Schwarz setzt Matt.} 37. Ke1 {[%emt 0:00:06]} Rf1+ {[%emt 0:00:10]} 38. Ke2 {[%emt 0:00:05]} R5f2+ {[%emt 0:00:05]} 39. Ke3 {[%emt 0:00:01]} Re1+ {[%emt 0:00:02]} 40. Kxf2 {[%emt 0:00:01]} Rxe8 {[%emt 0:00:01] Gewichteter Fehlerwert: Weiß=0.58/Schwarz=0.08 (makellos) .  Fehler:       	Weiß=6     	---        Ungenau:       	Weiß=3     	Schwarz=2     OK:         	Weiß=7     	Schwarz=6     Bester:       	Weiß=1     	Schwarz=4     Stark:        	Weiß=1     	Schwarz=3} 0-1

[Event "Grand Prix Romania 1st Stage 2024"]
[Site "Bucuresti"]
[Date "2024.03.24"]
[Round "9.5"]
[White "Mamedov, Rauf"]
[Black "Moroni, Luca Jr"]
[Result "1-0"]
[ECO "B07"]
[WhiteElo "2651"]
[BlackElo "2580"]
[Annotator "TA"]
[PlyCount "122"]
[EventDate "2024.03.20"]
[EventType "swiss"]
[EventCountry "ROU"]
[SourceTitle "playchess.com"]
[Source "ChessBase"]
[SourceQuality "1"]
[TimeControl "900+5"]

{[%evp 30,122,0,-14,-7,-45,-31,-34,-12,-14,-14,-25,-15,-27,-22,-24,-25,-18,-16,-16,-23,-53,-52,-46,-39,-57,-57,-57,-50,-56,0,-45,-8,-8,-8,-8,0,0,0,-16,0,0,0,0,0,0,0,0,0,0,0,0,0,0,0,0,0,0,0,0,37,37,72,72,72,72,99,99,136,99,99,100,122,122,138,122,120,94,225,183,157,232,239,225,238,219,228,232,29943,12839,6779,6779,5826,5724,1522]} 1. e4 {[%emt 0:00:01]} d6 {[%emt 0:00:00]} 2. d4 {[%emt 0:00:03]} e5 {[%emt 0:00:01]} 3. dxe5 {[%emt 0:00:08]} dxe5 {[%emt 0:00:02]} 4. Qxd8+ Kxd8 {[%emt 0:00:01]} 5. Bc4 {[%emt 0:00:05]} f6 {[%emt 0:00:01]} 6. Be3 {[%emt 0:00:45]} c6 {[%emt 0:00:02] B07: Pirc Defence: Miscellaneous Systems.} 7. Nd2 {[%emt 0:00:13] is the legacy move (7.a4).} Kc7 {[%emt 0:00:02]} 8. f4 {[%emt 0:00:09]} Nd7 {[%emt 0:00:15]} 9. Ngf3 {[%emt 0:00:03]} Bd6 $146 {[%emt 0:00:16]} ({Predecessor:} 9... Nh6 10. h3 Bc5 11. Bxc5 Nxc5 12. f5 b5 13. Bf1 Nf7 14. O-O-O Nd6 15. Re1 g5 {0-1 Mauritz,G (1848)-Mueller,M (2074) Niederbayernliga 1314 2013 (2)}) 10. fxe5 {[%emt 0:00:58]} Nxe5 {[%emt 0:00:50]} 11. Nxe5 {[%emt 0:00:09]} Bxe5 {[%emt 0:00:02]} 12. O-O-O {[%emt 0:00:16]} Ne7 {[%emt 0:00:45]} 13. Nf3 {[%emt 0:01:09]} Ng6 {[%emt 0:00:32]} 14. h4 {[%emt 0:03:39]} Bg3 {[%emt 0:02:17]} 15. h5 {[%emt 0:01:48]} Ne5 {[%emt 0:00:07]} 16. Nxe5 {[%emt 0:00:15]} Bxe5 {[%emt 0:00:06]} 17. Rdf1 {[%emt 0:00:07]} h6 {[%emt 0:00:42]} 18. Bf7 {[%emt 0:00:12]} Rf8 {[%emt 0:01:08]} 19. Bg6 $1 {[%emt 0:00:25]} Be6 {[%emt 0:00:49]} 20. Rd1 {[%emt 0:02:04]} Bg4 {[%emt 0:01:48]} 21. Rd3 {[%emt 0:00:31]} Rad8 {[%emt 0:00:41]} 22. b3 {[%emt 0:01:00]} Be2 {[%emt 0:00:57]} 23. Rd2 {[%emt 0:00:02]} Rxd2 {[%emt 0:00:11]} 24. Kxd2 {[%emt 0:00:06]} Bg4 {[%emt 0:00:02]} 25. c3 {[%emt 0:00:41]} Rd8+ {[%emt 0:01:12]} 26. Kc2 {[%emt 0:00:00]} Be2 {[%emt 0:00:39]} 27. Re1 {[%emt 0:00:02]} Bd3+ {[%emt 0:00:12]} 28. Kb2 {[%emt 0:00:01]} Ba6 {[%emt 0:00:01]} 29. Kc2 {[%emt 0:00:16]} Bd3+ {[%emt 0:00:54]} 30. Kb2 {[%emt 0:00:01]} a5 {[%emt 0:00:00]} 31. Rd1 {[%emt 0:00:42]} b6 {[%emt 0:01:46]} 32. Bd4 {[%emt 0:00:27]} c5 {[%emt 0:00:04]} 33. Rxd3 {[%emt 0:00:45]} cxd4 {[%emt 0:00:06]} 34. cxd4 {[%emt 0:00:01]} Bxd4+ {[%emt 0:00:03]} 35. Kc2 {[%emt 0:00:01]} Kc6 {[%emt 0:00:24]} 36. Bf7 {[%emt 0:00:02]} Kc5 {[%emt 0:00:22]} 37. a3 {[%emt 0:00:14]} b5 {[%emt 0:00:06]} 38. Kd1 {[%emt 0:00:22]} b4 {[%emt 0:00:09]} 39. a4 {[%emt 0:00:02]} Rd7 {[%emt 0:00:10]} 40. Be6 {[%emt 0:00:02]} Re7 {[%emt 0:00:06]} 41. Bf5 {[%emt 0:00:01]} Rc7 {[%emt 0:00:03]} 42. Be6 {[%emt 0:00:07]} Rc6 {[%emt 0:00:06]} 43. Bf5 {[%emt 0:00:02]} Rd6 {[%emt 0:00:01]} 44. Ke2 {[%emt 0:00:03]} Kb6 {[%emt 0:00:27]} 45. Rg3 {[%emt 0:00:11]} Bc3 {[%emt 0:00:09]} 46. Rxg7 {[%emt 0:00:03]} Rd2+ {[%emt 0:00:08]} 47. Ke3 {[%emt 0:00:04]} Rb2 {[%emt 0:00:01]} 48. Be6 {[%emt 0:00:02]} Kc5 {[%emt 0:00:01]} 49. Rd7 {[%emt 0:00:06]} Rxg2 {[%emt 0:00:11]} 50. Rd5+ {[%emt 0:00:01]} Kc6 {[%emt 0:00:00]} 51. Rxa5 {[%emt 0:00:03]} Kd6 {[%emt 0:00:04]} 52. Bc4 {[%emt 0:00:03]} Rg3+ {[%emt 0:00:06]} 53. Ke2 {[%emt 0:00:01]} Kc6 {[%emt 0:00:13]} (53... Rg5 $16 54. Rb5 Rxb5 55. Bxb5 Bd4) 54. Rd5 $18 {[%emt 0:00:06]} Be5 {[%emt 0:00:04]} 55. a5 {[%emt 0:00:00]} Rg2+ {[%emt 0:00:02]} 56. Kf3 {[%emt 0:00:01]} Rg3+ {[%emt 0:00:01] [#]} 57. Kf2 $1 {[%emt 0:00:03]} Rh3 {[%emt 0:00:08]} 58. a6 {[%emt 0:00:04]} Rxh5 $2 {[%emt 0:00:10] [#]} (58... Bc7 $18 59. Bb5+ Kb6) 59. a7 $1 {[%emt 0:00:23]} Rh2+ {[%emt 0:00:02]} 60. Kf3 {[%emt 0:00:01]} Ra2 {[%emt 0:00:02]} 61. Rxe5 {[%emt 0:00:02]} Rxa7 {[%emt 0:00:06]} 1-0

[Event "Grand Prix Romania 1st Stage 2024"]
[Site "Bucuresti"]
[Date "2024.03.24"]
[Round "9.6"]
[White "Brunello, Sabino"]
[Black "Parligras, Mircea-Emilian"]
[Result "1-0"]
[ECO "A13"]
[WhiteElo "2515"]
[BlackElo "2543"]
[Annotator "TA"]
[PlyCount "76"]
[EventDate "2024.03.20"]
[EventType "swiss"]
[EventCountry "ROU"]
[SourceTitle "playchess.com"]
[Source "ChessBase"]
[SourceQuality "1"]
[TimeControl "900+5"]

{[%evp 9,76,0,8,0,2,-5,28,27,41,-22,-19,-50,-46,-26,-37,-78,0,-12,-18,-25,-10,-64,0,0,12,0,0,0,10,-7,0,0,0,0,8,0,0,0,33,11,13,0,21,0,7,0,18,10,47,54,44,49,80,87,98,80,152,146,147,158,145,146,143,154,163,116,140,133,92]} 1. c4 {[%emt 0:00:02]} e6 {[%emt 0:00:03]} 2. g3 {[%emt 0:00:01]} d5 {[%emt 0:00:02]} 3. Nf3 {[%emt 0:00:02]} dxc4 {[%emt 0:00:02]} 4. Qa4+ {[%emt 0:00:01]} Nd7 {[%emt 0:00:02]} 5. Qxc4 {[%emt 0:00:02]} a6 {[%emt 0:00:04]} 6. Qc2 {[%emt 0:00:16]} b5 {[%emt 0:00:23]} 7. Nd4 {[%emt 0:02:20]} Ne7 {[%emt 0:00:55]} 8. Bg2 {[%emt 0:00:06] Wehrt Bb7 ab. Weiß hat minimalen Vorteil.} Rb8 {[%emt 0:00:02]} 9. Nc3 {[%emt 0:00:25]} (9. b4 $14) 9... c5 $11 {[%emt 0:00:48]} 10. Ne4 {[%emt 0:00:30]} Qb6 {[%emt 0:00:14] Verhindert Nd6+} 11. Nf3 {[%emt 0:01:08][%cal Od2d4]} Bb7 {[%emt 0:00:25]} 12. b3 {[%emt 0:00:16]} Nf5 {[%emt 0:01:40]} (12... f5 $17 13. Nc3 Nc6) 13. Bb2 {[%emt 0:01:33]} Be7 {[%emt 0:00:24]} 14. e3 {[%emt 0:01:07] Wehrt Nd4 ab} O-O {[%emt 0:11:11][%cal Oc5c4]} 15. h4 {[%emt 0:00:02]} (15. O-O $11) 15... Bxe4 {[%emt 0:00:00]} (15... c4 $15 16. g4 Nh6) 16. Qxe4 {[%emt 0:00:03]} Bf6 {[%emt 0:00:00]} 17. Bc3 {[%emt 0:01:31]} Rfd8 {[%emt 0:00:00]} 18. O-O {[%emt 0:00:14]} Rbc8 {[%emt 0:00:00]} 19. Rad1 {[%emt 0:00:50]} c4 {[%emt 0:00:00]} 20. Bxf6 {[%emt 0:03:14]} Nxf6 {[%emt 0:00:00]} 21. Qb1 {[%emt 0:00:04]} Qd6 {[%emt 0:00:00]} 22. bxc4 {[%emt 0:00:13]} bxc4 {[%emt 0:00:00]} 23. Rc1 {[%emt 0:00:13]} Ng4 {[%emt 0:00:00]} 24. Qe4 {[%emt 0:00:17]} Nf6 {[%emt 0:00:00]} 25. Qb1 {[%emt 0:00:14]} Ng4 {[%emt 0:00:00]} 26. Qe4 {[%emt 0:00:02]} Nf6 {[%emt 0:00:00][%cal Bg4f6,Bf6e4,Be4g3,Bg3f5,Bf5h4][%mdl 32]} 27. Qf4 {[%emt 0:00:24]} Qxf4 {[%emt 0:00:00]} 28. gxf4 {[%emt 0:00:01]} Ne4 {[%emt 0:00:00]} 29. Rc2 {[%emt 0:00:13]} c3 {[%emt 0:00:00]} 30. d4 {[%emt 0:00:25]} f6 {[%emt 0:00:31]} 31. Rfc1 {[%emt 0:00:09]} Nfd6 {[%emt 0:00:22]} 32. Ne1 {[%emt 0:00:18]} Rd7 {[%emt 0:00:22]} (32... Kf7 $142) 33. f3 $16 {[%emt 0:00:16]} Ng3 {[%emt 0:00:02]} 34. Kf2 {[%emt 0:00:06]} (34. Rxc3 $2 {ist das falsche Schlagen.} Rxc3 35. Rxc3 Ne2+ 36. Kh2 Nxc3 $19) 34... Ngf5 {[%emt 0:00:02]} 35. Rxc3 {[%emt 0:00:06]} Rxc3 36. Rxc3 {[%emt 0:00:01]} Nxh4 {[%emt 0:00:03]} 37. Bf1 {[%emt 0:00:38]} (37. Bh3 $18 Ndf5 38. Bf1) 37... a5 {[%emt 0:00:12]} 38. Nd3 {[%emt 0:00:01]} Kf7 {[%emt 0:00:11] Gewichteter Fehlerwert: Weiß=0.14 (sehr präzise) /Schwarz=0.16 (sehr präzise) .  Fehler:       	Weiß=3     	Schwarz=3     Ungenau:       	Weiß=2     	Schwarz=4     OK:         	Weiß=12    	Schwarz=16} 1-0